bitfinex-derivatives/quotes_ETHF0:USTF0_20260121
["timestamp","ask_amount","ask_price","bid_price","bid_amount"]
[1769004364779,0.00340759,2953.4,2950.8,3.47920817]
[1769004365185,0.1695,2952.9,2950.8,3.47920817]
[1769004365481,0.00340759,2953.4,2950.8,3.47920817]
[1769004365691,0.00340759,2953.4,2951.2,3.47920817]
[1769004365887,0.1694,2954.7,2951.9,3.47920817]
[1769004366083,1.05502447,2955.2,2951.9,3.47920817]
[1769004366290,0.16946,2953.5,2951.9,3.47920817]
[1769004366490,0.16942,2954.4,2951.9,3.47920817]
[1769004366787,1.05502447,2955.4,2951.9,3.48216063]
[1769004367694,2.6851349,2954.8,2951.9,3.48216063]
[1769004367991,0.16945,2953.7,2951.9,3.48216063]
[1769004368298,0.97920332,2954.0,2951.9,0.00295246]
[1769004368591,0.1695,2952.9,2951.2,3.47920817]
[1769004368886,1.885,2953.8,2951.2,3.47920817]
[1769004369091,1.48902488,2953.0,2949.0,0.16972]
[1769004369393,0.16954,2952.2,2949.2,4.376668]
[1769004369593,0.16954,2952.2,2949.2,4.37953436]
[1769004369788,1.48902488,2953.7,2949.2,4.37953436]
[1769004369789,0.16949,2953.1,2949.2,0.00286636]
[1769004369991,0.1695,2953.0,2950.0,0.16966]
[1769004370287,0.16953,2952.4,2949.2,0.00286636]
[1769004370492,0.16953,2952.4,2949.7,0.16968]
[1769004370695,0.16954,2952.2,2949.3,4.44043139]
[1769004370888,0.16954,2952.1,2949.4,0.16969]
[1769004371082,0.16954,2952.1,2949.7,3.47920817]
[1769004371282,0.1695,2952.9,2949.9,3.47920817]
[1769004371481,2.6851349,2953.8,2950.8,3.47920817]
[1769004371482,0.16945,2953.8,2950.8,3.47920817]
[1769004371682,0.00355952,2954.0,2951.0,3.47920817]
[1769004372088,0.17299952,2954.0,2951.0,3.47920817]
[1769004372290,0.16946,2953.7,2951.0,3.47920817]
[1769004372685,0.16946,2953.6,2951.0,3.47920817]
[1769004372888,0.16951,2952.7,2951.0,3.47920817]
[1769004373097,0.16949,2953.1,2951.0,3.47920817]
[1769004373292,0.1695,2952.9,2951.0,3.47920817]
[1769004373488,1.39456414,2954.0,2951.0,3.47920817]
[1769004373792,0.16952,2952.5,2951.0,3.47920817]
[1769004374190,0.16954,2952.2,2951.0,3.47920817]
[1769004374390,0.16957,2951.6,2950.3,3.47920817]
[1769004374594,0.17267556,2951.6,2950.3,3.47920817]
[1769004374892,0.00310556,2951.6,2950.3,3.47920817]
[1769004376291,0.1695,2953.0,2950.3,9.47920817]
[1769004376496,1.77722179,2954.1,2950.4,3.6234685]
[1769004376689,0.16945,2953.7,2950.4,3.4538285]
[1769004376894,0.16953,2952.3,2950.4,3.4538285]
[1769004377297,1.77722179,2953.6,2950.4,3.4538285]
[1769004377500,2.66804831,2953.5,2950.4,3.4538285]
[1769004377801,0.89082652,2953.4,2950.4,3.4538285]
[1769004377996,0.16957,2951.7,2950.4,3.4538285]
[1769004378202,1.80741834,2952.6,2950.4,3.4538285]
[1769004378390,0.16956,2951.9,2950.4,3.4538285]
[1769004379293,1.80741834,2953.0,2950.4,3.4538285]
[1769004379497,0.16955,2952.0,2950.4,3.4538285]
[1769004379894,0.16956,2951.9,2950.4,3.4538285]
[1769004380295,0.16956,2951.8,2950.4,3.4538285]
[1769004380493,0.16952,2952.6,2950.4,3.4538285]
[1769004381197,0.16947,2953.4,2950.5,0.16963]
[1769004381498,0.16952,2952.6,2950.6,3.4538285]
[1769004382096,1.80741834,2953.7,2950.6,3.4538285]
[1769004382305,0.16952,2952.6,2950.6,3.4538285]
[1769004382694,0.16952,2952.5,2950.6,3.4538285]
[1769004382889,0.16953,2952.4,2950.6,3.4538285]
[1769004383107,1.80741834,2953.1,2950.6,3.4538285]
[1769004383291,0.16954,2952.3,2950.6,3.4538285]
[1769004383902,0.16956,2951.8,2950.6,3.4538285]
[1769004384096,0.16957,2951.6,2950.6,3.4538285]
[1769004384898,0.16958,2951.5,2950.6,3.4538285]
[1769004385898,1.80741834,2952.2,2949.3,3.4538285]
[1769004386105,1.80741834,2952.0,2949.3,3.4538285]
[1769004386398,0.88308156,2952.1,2949.3,3.4538285]
[1769004386399,1.80741834,2951.3,2949.3,3.4538285]
[1769004386598,0.16964,2950.4,2949.3,3.4538285]
[1769004386802,0.16961,2951.0,2949.3,3.4538285]
[1769004387000,0.16964,2950.5,2949.3,3.4538285]
[1769004387206,0.16964,2950.5,2949.6,0.00508475]
[1769004387801,1.80741834,2951.3,2949.6,0.00508475]
[1769004387802,0.16965,2950.4,2949.6,0.00508475]
[1769004387999,1.80741834,2951.2,2949.6,4.75e-06]
[1769004388203,0.16965,2950.2,2949.6,4.75e-06]
[1769004388594,0.16965,2950.2,2949.3,3.4538285]
[1769004388595,0.16965,2950.2,2949.2,0.00286636]
[1769004389600,0.16967,2949.9,2949.2,0.00286636]
[1769004389800,0.16966,2950.1,2948.4,4.12496911]
[1769004390009,0.16963,2950.6,2948.4,4.12496911]
[1769004390403,0.1696,2951.1,2949.1,3.4538285]
[1769004390605,0.16957,2951.7,2949.1,3.4538285]
[1769004390910,0.16959,2951.4,2949.1,3.45676641]
[1769004391108,0.1696,2951.1,2949.1,3.45676641]
[1769004391408,5.2296041,2952.6,2949.1,3.45676641]
[1769004391409,0.16953,2952.3,2949.9,3.4538285]
[1769004391709,0.88252772,2952.2,2949.9,3.4538285]
[1769004391909,1.80741834,2952.9,2949.9,3.4538285]
[1769004392105,0.26925574,2953.3,2949.9,3.4538285]
[1769004392106,0.16956,2951.8,2949.9,3.4538285]
[1769004393003,0.16953,2952.5,2949.9,3.4538285]
[1769004393216,0.16953,2952.5,2950.0,0.16966]
[1769004393399,0.16953,2952.5,2949.9,3.4538285]
[1769004393400,0.16955,2952.1,2950.1,3.4538285]
[1769004394004,0.16956,2951.9,2950.1,3.4538285]
[1769004394910,1.80741834,2952.7,2950.1,3.4538285]
[1769004395307,0.16955,2952.0,2950.1,3.4538285]
[1769004395913,0.16956,2951.9,2950.1,3.4538285]
[1769004397102,0.16952,2952.6,2950.1,3.4538285]
[1769004397308,0.88239133,2952.5,2950.1,3.4538285]
[1769004397508,0.16956,2951.9,2950.1,3.4538285]
[1769004398215,1.80741834,2952.8,2950.1,3.4538285]
[1769004398416,1.80741834,2952.9,2950.1,3.4538285]
[1769004399717,1.80741834,2953.4,2950.4,3.4538285]
[1769004399925,0.16948,2953.3,2950.7,3.4538285]
[1769004400218,0.16948,2953.3,2951.7,3.4538285]
[1769004400421,0.16948,2953.3,2951.7,3.45758728]
[1769004401116,1.97681834,2954.6,2951.7,3.62715728]
[1769004401318,0.16942,2954.4,2951.7,3.62715728]
[1769004401717,0.16943,2954.2,2951.7,3.62715728]
[1769004401923,0.16939,2954.8,2952.0,3.4538285]
[1769004402124,0.16935,2955.6,2953.0,0.16949]
[1769004402316,0.23464466,2955.7,2953.2,3.4538285]
[1769004402822,0.00502283,2954.5,2953.2,3.4538285]
[1769004403420,0.23464466,2955.7,2953.2,3.4538285]
[1769004403421,0.40398466,2955.7,2953.2,3.4538285]
[1769004403923,0.23464466,2955.7,2953.4,3.4538285]
[1769004404127,0.16926,2957.0,2953.9,3.4538285]
[1769004404326,1.80741834,2957.8,2954.1,3.4538285]
[1769004404621,0.16923,2957.7,2954.6,3.6232285]
[1769004405014,1.80741834,2958.6,2954.2,48.33719172]
[1769004405015,1.80741834,2959.0,2955.8,3.4538285]
[1769004405324,0.05887563,2958.9,2955.8,3.4538285]
[1769004405516,1.60757346,2959.5,2955.8,3.4538285]
[1769004405717,0.058859,2958.6,2955.8,3.4538285]
[1769004406121,1.60757346,2958.4,2955.8,3.4538285]
[1769004406321,1.60757346,2958.2,2954.1,3.67586204]
[1769004406521,0.8693573,2958.1,2954.3,3.67586204]
[1769004406728,1.884,2958.5,2954.5,3.67586204]
[1769004406928,1.884,2958.5,2954.6,3.67586204]
[1769004407221,1.67907574,2958.1,2954.6,3.67586204]
[1769004407524,0.16925,2957.2,2956.3,0.00507606]
[1769004407716,0.16927,2956.9,2955.5,3.67586204]
[1769004407917,3.55842871,2958.0,2954.2,40.8]
[1769004407918,1.67542871,2957.9,2954.2,40.8]
[1769004408120,1.67542871,2957.2,2954.3,3.67586204]
[1769004408333,0.16926,2957.1,2953.2,3.67586204]
[1769004408627,0.16926,2957.1,2953.9,3.67586204]
[1769004408826,0.17285728,2957.1,2954.1,3.67586204]
[1769004409126,0.17285728,2957.1,2955.0,3.67586204]
[1769004409127,0.00359728,2957.1,2955.0,3.67586204]
[1769004410429,0.00359728,2957.1,2954.9,0.00507606]
[1769004410430,0.16919,2958.3,2955.5,3.67586204]
[1769004410927,0.05886726,2959.2,2955.5,3.67586204]
[1769004411123,0.16918,2958.4,2956.7,3.67586204]
[1769004411428,0.16919,2958.2,2956.7,3.67865825]
[1769004411823,0.16915,2959.0,2956.7,3.67865825]
[1769004412122,27.109,2961.2,2956.7,3.67865825]
[1769004412123,0.05885517,2959.6,2956.8,3.67586204]
[1769004412422,0.16909,2960.0,2956.8,3.67586204]
[1769004412620,0.26782663,2960.4,2957.7,3.67586204]
[1769004412817,1.815136,2960.9,2957.7,3.67586204]
[1769004412818,0.16912,2959.6,2957.7,3.67586204]
[1769004413122,2.15170031,2960.4,2957.7,3.67586204]
[1769004413320,2.15170031,2960.4,2957.6,0.00507606]
[1769004413321,0.16917,2958.7,2957.6,0.00507606]
[1769004413623,0.16918,2958.4,2957.6,3.6758681]
[1769004413824,0.16914,2959.3,2957.6,3.6758681]
[1769004414125,0.16913,2959.3,2957.6,3.6758681]
[1769004414721,2.00888666,2959.8,2957.6,6.06e-06]
[1769004415026,0.16917,2958.7,2957.6,6.06e-06]
[1769004415524,0.16919,2958.4,2957.6,6.06e-06]
[1769004415735,3.89088666,2959.8,2957.6,6.06e-06]
[1769004415921,2.03760886,2959.1,2956.7,0.00279621]
[1769004416118,0.1692,2958.2,2956.7,3.67865825]
[1769004416526,0.16915,2959.0,2956.7,3.67865825]
[1769004416721,1.882,2959.8,2956.7,3.67865825]
[1769004417234,1.86181658,2959.7,2956.7,3.67865825]
[1769004417531,0.16923,2957.6,2956.7,0.00279621]
[1769004418324,0.16922,2957.9,2956.9,0.00507606]
[1769004418524,0.16917,2958.6,2956.9,3.59749319]
[1769004418833,0.00507606,2957.7,2956.9,6.06e-06]
[1769004419133,0.00507606,2957.7,2955.6,3.59241713]
[1769004419729,0.16925,2957.3,2955.6,3.59241713]
[1769004420128,0.16926,2957.0,2955.6,3.59567722]
[1769004420327,0.0028399,2957.3,2955.6,0.00326009]
[1769004420626,0.16929,2956.6,2955.6,0.00326009]
[1769004420832,0.16931,2956.2,2954.3,0.66365396]
[1769004421029,0.16927,2956.9,2954.3,0.66365396]
[1769004421224,0.0028399,2957.3,2954.3,0.66365396]
[1769004421425,0.00507606,2955.9,2954.3,0.66365396]
[1769004421826,0.00507606,2955.9,2954.3,0.66635171]
[1769004422228,0.16933,2955.8,2954.3,0.66635171]
[1769004422424,0.16935,2955.6,2954.3,0.66635171]
[1769004422624,0.16937,2955.2,2954.3,0.66635171]
[1769004422830,0.16942,2954.4,2951.3,3.59241713]
[1769004423028,0.16942,2954.4,2951.5,3.59241713]
[1769004423829,0.17344843,2954.4,2951.5,3.59647649]
[1769004424034,0.00402843,2954.4,2951.5,3.76605649]
[1769004424335,0.16943,2954.1,2951.5,3.59647649]
[1769004424531,0.00402843,2954.4,2951.5,3.59647649]
[1769004425632,0.00402843,2954.4,2951.7,3.59241713]
[1769004426335,0.00402843,2954.4,2951.7,3.76198713]
[1769004426932,0.16942,2954.3,2951.7,3.59241713]
[1769004427141,0.00402843,2954.4,2951.7,3.59241713]
[1769004427142,0.16943,2954.2,2951.7,3.59241713]
[1769004427436,0.16945,2953.8,2951.7,3.59241713]
[1769004428131,0.00402843,2954.4,2951.7,3.59241713]
[1769004428330,0.16942,2954.3,2951.7,3.59241713]
[1769004428530,0.00402843,2954.4,2951.7,3.59241713]
[1769004428833,0.16943,2954.1,2951.7,3.59241713]
[1769004429028,0.00402843,2954.4,2951.7,3.76197713]
[1769004429230,0.00402843,2954.4,2952.1,3.59241713]
[1769004429436,0.16932,2956.1,2952.8,3.59241713]
[1769004429629,0.16932,2956.1,2952.1,9.413]
[1769004429630,0.16932,2956.1,2953.2,3.76189713]
[1769004429833,0.16932,2956.1,2953.4,3.59241713]
[1769004430032,0.16932,2956.1,2953.6,3.59241713]
[1769004430436,0.16928,2956.8,2953.8,3.76185713]
[1769004430634,2.37537622,2957.3,2953.8,3.59241713]
[1769004430831,0.16932,2956.0,2953.8,3.59241713]
[1769004431035,0.16933,2955.8,2953.8,3.59523061]
[1769004432136,0.16933,2955.9,2953.8,3.59523061]
[1769004432438,0.16933,2955.8,2953.8,3.59523061]
[1769004432632,0.00346081,2956.8,2953.8,3.59523061]
[1769004432835,0.86866202,2956.7,2954.6,0.00507606]
[1769004433037,0.16933,2955.9,2954.6,0.00507606]
[1769004433237,0.16933,2955.9,2954.6,3.59749319]
[1769004433432,0.00346081,2956.8,2954.6,3.59749319]
[1769004433736,0.1693,2956.4,2954.6,3.59749319]
[1769004434039,0.00507606,2956.0,2954.6,3.59749319]
[1769004434634,0.16933,2955.9,2954.6,3.59749319]
[1769004434834,0.00507606,2956.0,2954.6,3.59749319]
[1769004435036,0.16935,2955.6,2954.6,3.59749319]
[1769004435439,0.16935,2955.5,2954.6,3.59749319]
[1769004435639,0.16937,2955.3,2954.0,3.46760443]
[1769004435938,0.16937,2955.2,2954.0,3.46760443]
[1769004436144,0.16938,2955.0,2953.8,0.00281348]
[1769004436346,1.88707606,2956.0,2953.8,0.00281348]
[1769004436639,0.86905161,2955.9,2953.8,0.00281348]
[1769004436841,1.9976262,2955.8,2953.4,3.46760443]
[1769004437038,0.86905161,2955.7,2953.4,3.46760443]
[1769004437234,0.1694,2954.7,2953.4,3.46760443]
[1769004437439,0.16941,2954.4,2952.8,3.46760443]
[1769004437835,0.00507606,2953.9,2952.8,3.46760443]
[1769004438245,0.00881227,2953.9,2952.8,3.47057203]
[1769004439946,0.00881227,2953.9,2951.1,2.0516]
[1769004439947,0.00881227,2953.9,2952.2,3.46760443]
[1769004440247,0.00881227,2953.9,2953.1,0.00507606]
[1769004440443,0.16946,2953.6,2952.2,3.46760443]
[1769004440947,0.16946,2953.5,2952.2,3.4719523]
[1769004441341,0.00881227,2953.9,2952.2,3.4719523]
[1769004441738,0.17825227,2953.9,2952.2,3.4719523]
[1769004442151,0.17825227,2953.9,2952.8,0.00507606]
[1769004442350,0.00881227,2953.9,2952.8,0.00507606]
[1769004442650,0.00881227,2953.9,2952.2,3.4719523]
[1769004443452,0.16948,2953.2,2952.2,3.4719523]
[1769004443652,0.16948,2953.2,2952.2,0.00434787]
[1769004443948,2.68007047,2953.7,2952.2,0.00434787]
[1769004444152,2.68007047,2953.7,2951.5,3.46760443]
[1769004444349,0.16947,2953.4,2951.5,3.46760443]
[1769004444548,0.16948,2953.3,2951.5,3.46760443]
[1769004445149,0.16948,2953.3,2951.5,3.47115528]
[1769004445761,2.68007047,2953.7,2951.5,3.47115528]
[1769004446052,0.1695,2952.8,2951.5,3.47115528]
[1769004446445,2.68007047,2953.7,2951.5,3.47115528]
[1769004446642,0.1695,2952.8,2951.5,3.47115528]
[1769004446843,2.68007047,2953.7,2951.5,3.47115528]
[1769004447044,0.16953,2952.5,2951.5,3.47115528]
[1769004447256,0.16953,2952.4,2951.5,3.47115528]
[1769004447442,0.17460606,2952.3,2951.5,0.00355085]
[1769004447647,0.17460606,2952.3,2950.9,3.46760443]
[1769004447847,0.16954,2952.2,2950.9,3.46760443]
[1769004448446,0.16955,2952.0,2950.9,3.46760443]
[1769004448652,0.16955,2952.0,2950.9,3.47174645]
[1769004448851,0.00507606,2952.3,2950.9,3.47174645]
[1769004449249,0.16955,2952.1,2950.9,3.47174645]
[1769004449450,0.16955,2952.0,2950.9,3.47174645]
[1769004449757,0.00507606,2952.3,2950.3,3.46760443]
[1769004449758,2.68353139,2952.3,2950.3,3.46760443]
[1769004450053,0.16958,2951.5,2950.3,3.46760443]
[1769004450250,2.68007047,2952.3,2950.3,3.46760443]
[1769004450558,0.87302065,2952.2,2950.3,3.46760443]
[1769004450748,2.68007047,2952.3,2950.3,3.46760443]
[1769004450749,0.87302065,2952.1,2950.3,3.46760443]
[1769004451053,0.00426091,2952.1,2950.3,3.47131651]
[1769004451352,0.00507606,2951.5,2950.3,3.47131651]
[1769004451954,0.16959,2951.4,2948.8,0.16973]
[1769004452159,0.1696,2951.3,2948.9,0.16973]
[1769004452359,0.1696,2951.3,2950.6,0.00161514]
[1769004452552,0.1696,2951.3,2948.9,0.16973]
[1769004452957,0.00507606,2951.5,2948.9,0.00303579]
[1769004453152,0.17465606,2951.5,2948.9,0.00303579]
[1769004453654,0.16959,2951.4,2949.1,0.16971]
[1769004454161,0.16959,2951.4,2949.2,3.46760443]
[1769004454759,0.00507606,2951.5,2949.2,3.46760443]
[1769004454951,0.00507606,2951.5,2949.7,3.46760443]
[1769004455259,0.00507606,2951.5,2948.9,0.00303579]
[1769004455260,0.00507606,2951.5,2949.9,3.46760443]
[1769004456758,0.00426091,2952.1,2950.3,3.63725443]
[1769004456953,0.16949,2953.0,2950.3,3.63725443]
[1769004457162,2.68007047,2953.6,2950.8,3.46760443]
[1769004457363,0.16945,2953.7,2951.0,3.46760443]
[1769004457663,0.16946,2953.6,2951.0,3.63720443]
[1769004457859,2.6851553,2952.6,2950.3,3.46760443]
[1769004458055,0.00841594,2952.6,2950.3,3.47086889]
[1769004458557,0.16952,2952.5,2950.3,3.47086889]
[1769004460059,0.00841594,2952.6,2950.3,3.47086889]
[1769004460358,0.00841594,2952.6,2950.3,3.64051889]
[1769004460559,0.17793594,2952.6,2950.3,3.47086889]
[1769004460767,0.00841594,2952.6,2950.3,3.47086889]
[1769004461952,0.16953,2952.3,2950.3,3.47086889]
[1769004463757,0.16954,2952.2,2950.3,3.47086889]
[1769004464258,0.00841594,2952.6,2950.3,3.47086889]
[1769004464455,0.16952,2952.5,2950.3,3.47086889]
[1769004464962,2.84962047,2952.0,2950.3,3.47086889]
[1769004465155,0.16956,2951.8,2950.3,3.47086889]
[1769004465854,0.16957,2951.7,2950.3,3.47086889]
[1769004466260,0.16958,2951.5,2950.3,0.00326446]
[1769004466461,0.86950945,2951.4,2949.7,3.4563221]
[1769004466662,3.54957992,2951.3,2948.7,3.4563221]
[1769004466868,0.17470483,2950.8,2948.7,3.4563221]
[1769004467262,0.16963,2950.7,2948.7,3.4563221]
[1769004467663,0.16963,2950.7,2948.7,3.45875231]
[1769004467963,0.16964,2950.5,2948.7,3.45875231]
[1769004468162,0.17390308,2950.5,2948.7,3.45875231]
[1769004468867,0.00426308,2950.5,2948.7,3.45875231]
[1769004469168,0.17390308,2950.5,2948.7,3.45875231]
[1769004469368,0.16964,2950.4,2948.7,3.45875231]
[1769004470660,0.00426308,2950.5,2948.7,3.45875231]
[1769004471461,0.16965,2950.2,2948.7,3.45875231]
[1769004471767,0.00426308,2950.5,2948.7,3.45875231]
[1769004472171,0.00426308,2950.5,2948.7,3.62849231]
[1769004472363,0.00508483,2950.8,2948.9,3.4563221]
[1769004472660,0.00508483,2950.8,2948.9,3.6260421]
[1769004473268,0.00879784,2950.8,2948.9,3.6260421]
[1769004473668,0.00879784,2950.8,2948.9,3.4563221]
[1769004474871,0.00879784,2950.8,2948.9,3.6260421]
[1769004477666,0.00879784,2950.8,2948.9,3.4563221]
[1769004481161,0.00879784,2950.8,2949.1,3.43263056]
[1769004482870,0.17841784,2950.8,2949.1,3.43263056]
[1769004483472,0.16963,2950.7,2949.1,3.43263056]
[1769004484174,2.07192708,2950.7,2949.1,3.43263056]
[1769004485480,0.00879784,2950.8,2949.1,3.43263056]
[1769004486578,0.00879784,2950.8,2949.1,3.60234056]
[1769004487279,0.16955,2952.0,2949.7,3.43263056]
[1769004487582,0.16953,2952.3,2949.9,3.60230056]
[1769004487781,0.16955,2952.0,2949.9,3.43263056]
[1769004488370,0.16958,2951.5,2949.9,3.43263056]
[1769004488576,0.00508483,2951.2,2949.9,3.43263056]
[1769004488771,0.00508483,2951.2,2949.4,3.43263056]
[1769004488973,0.16961,2951.0,2949.4,3.43263056]
[1769004489180,0.16962,2950.8,2948.8,3.43263056]
[1769004489375,2.93765311,2950.7,2948.8,3.43263056]
[1769004489575,0.16965,2950.2,2948.8,3.43263056]
[1769004490080,2.07192708,2950.1,2948.7,0.00243021]
[1769004490284,0.16968,2949.8,2948.2,3.43263056]
[1769004490474,0.16964,2950.5,2948.2,3.43263056]
[1769004490677,0.86594622,2950.4,2948.2,3.43263056]
[1769004490888,0.16964,2950.5,2948.2,3.43263056]
[1769004491180,0.16964,2950.5,2948.2,3.43582808]
[1769004491181,2.07192708,2950.1,2948.2,3.43582808]
[1769004491382,0.16965,2950.3,2948.2,3.43582808]
[1769004491976,0.86615647,2950.2,2948.2,3.43582808]
[1769004492178,0.00508483,2949.5,2948.2,3.43582808]
[1769004493077,0.16965,2950.3,2948.2,3.43582808]
[1769004493276,0.86657416,2950.2,2948.2,3.43582808]
[1769004493582,0.16965,2950.3,2948.2,3.43582808]
[1769004493777,0.86657263,2950.2,2948.2,3.43582808]
[1769004493983,0.16965,2950.3,2948.2,3.43582808]
[1769004494178,0.0040581,2950.5,2948.2,3.43582808]
[1769004494385,0.86688721,2950.4,2948.2,3.43582808]
[1769004494585,0.0040581,2950.5,2948.2,3.43582808]
[1769004494776,0.86686238,2950.4,2948.2,3.43582808]
[1769004494971,0.0040581,2950.5,2948.2,3.43582808]
[1769004495186,0.86686106,2950.4,2948.2,3.43582808]
[1769004495391,0.0040581,2950.5,2948.2,3.43582808]
[1769004495685,0.86697393,2950.4,2948.2,3.43582808]
[1769004495890,0.0040581,2950.5,2948.2,3.43582808]
[1769004496083,0.86697455,2950.4,2948.2,3.43582808]
[1769004496285,0.0040581,2950.5,2948.2,5.81515144]
[1769004496488,0.86712746,2950.4,2948.3,3.76787272]
[1769004496695,0.0040581,2950.5,2948.3,3.76787272]
[1769004496888,0.86712645,2950.4,2948.3,3.76787272]
[1769004497090,0.16965,2950.3,2948.3,3.76787272]
[1769004498484,0.0040581,2950.5,2948.4,3.76787272]
[1769004498690,0.00508483,2949.6,2948.4,3.76787272]
[1769004498892,0.0040581,2950.5,2949.2,0.00508483]
[1769004499089,0.86802739,2950.4,2949.2,0.00508483]
[1769004499396,0.0040581,2950.5,2949.2,0.00508483]
[1769004499583,0.86798979,2950.4,2949.2,0.00508483]
[1769004499886,0.00508483,2950.1,2949.2,3.77295755]
[1769004500091,0.1696,2951.2,2949.2,3.77295755]
[1769004500385,1.03744597,2951.1,2949.2,3.77295755]
[1769004500590,0.1696,2951.1,2949.2,3.77295755]
[1769004500976,0.17236786,2951.1,2949.2,3.77295755]
[1769004501186,0.00276786,2951.1,2949.3,3.76787272]
[1769004501377,0.00276786,2951.1,2949.4,6.14719608]
[1769004501577,0.00276786,2951.1,2949.5,6.31688608]
[1769004501787,0.16954,2952.2,2949.9,3.76787272]
[1769004501979,0.16954,2952.2,2950.3,3.76787272]
[1769004502388,0.1695,2952.9,2951.0,3.77295755]
[1769004502582,0.16952,2952.6,2951.0,3.77295755]
[1769004502780,0.16953,2952.4,2951.0,0.00508483]
[1769004502981,0.85741484,2952.3,2950.4,3.76787272]
[1769004503291,0.16957,2951.7,2949.9,3.76787272]
[1769004503488,1.02708165,2951.6,2949.9,3.76787272]
[1769004503689,0.16957,2951.6,2949.9,3.76787272]
[1769004503889,0.16958,2951.5,2949.9,3.76787272]
[1769004504203,4.29367528,2951.4,2948.9,3.76787272]
[1769004504492,0.16963,2950.7,2948.9,3.77158461]
[1769004505289,0.1696,2951.2,2948.9,3.77158461]
[1769004505492,3.43608566,2950.8,2948.9,0.00371189]
[1769004505685,0.00508483,2950.3,2948.9,0.00371189]
[1769004505888,0.00753414,2950.3,2949.6,0.00508483]
[1769004511697,0.00753414,2950.3,2948.9,0.00371189]
[1769004514795,0.00753414,2950.3,2948.9,3.77158461]
[1769004516192,0.00753414,2950.3,2948.9,0.00371189]
[1769004517287,0.00753414,2950.3,2948.9,3.77158461]
[1769004517691,0.00753414,2950.3,2948.9,6.15090797]
[1769004518096,0.00753414,2950.3,2949.0,3.76787272]
[1769004518293,0.00753414,2950.3,2949.1,6.14719608]
[1769004518496,2.40488372,2951.8,2948.9,0.00371189]
[1769004518497,5.4021495,2951.9,2949.5,3.76787272]
[1769004518697,0.85831645,2951.8,2949.8,3.76787272]
[1769004518893,0.85831645,2951.7,2949.8,3.76787272]
[1769004519093,0.16956,2951.9,2949.8,3.76787272]
[1769004519297,0.85824781,2951.8,2949.8,3.76787272]
[1769004519493,0.16956,2951.9,2949.9,3.76787272]
[1769004519693,0.00346955,2951.9,2950.1,3.76787272]
[1769004520502,0.00346955,2951.9,2950.1,6.14719608]
[1769004520696,0.00346955,2951.9,2950.2,3.76787272]
[1769004522696,0.16956,2951.8,2949.8,2.37932336]
[1769004523001,0.16956,2951.8,2949.6,6.14719608]
[1769004523204,0.16956,2951.8,2949.7,3.76787272]
[1769004523406,0.00346955,2951.9,2950.1,3.76787272]
[1769004523604,0.00346955,2951.9,2950.1,6.14719608]
[1769004523899,0.00346955,2951.9,2950.3,3.76787272]
[1769004524403,0.00346955,2951.9,2950.8,0.00508483]
[1769004524899,0.00346955,2951.9,2950.8,3.77295755]
[1769004525501,0.16949,2953.0,2950.8,3.77295755]
[1769004526307,0.0589741,2953.2,2950.9,3.43810597]
[1769004526606,0.00411716,2953.2,2950.9,3.43810597]
[1769004526998,3.67149486,2953.2,2950.9,3.43810597]
[1769004527198,0.16949,2953.0,2950.9,3.43810597]
[1769004528399,3.67149486,2953.2,2950.8,0.00508483]
[1769004528400,0.16952,2952.6,2950.8,0.00508483]
[1769004528603,0.0589751,2953.1,2950.8,3.4431908]
[1769004528804,0.00411716,2953.2,2950.8,3.4431908]
[1769004529502,0.16949,2953.1,2950.8,3.4431908]
[1769004530107,0.1695,2953.0,2950.8,3.4431908]
[1769004530712,0.00411716,2953.2,2950.8,3.4431908]
[1769004531211,0.00411716,2953.2,2950.8,3.6128008]
[1769004531915,0.00411716,2953.2,2951.0,3.43810597]
[1769004532108,0.00411716,2953.2,2951.0,3.44091244]
[1769004533712,0.00411716,2953.2,2951.2,3.43810597]
[1769004533912,0.00411716,2953.2,2951.2,3.60769597]
[1769004535114,0.00411716,2953.2,2951.4,3.43810597]
[1769004536717,0.00411716,2953.2,2951.4,3.60768597]
[1769004537217,0.00411716,2953.2,2951.4,3.43810597]
[1769004538215,0.1695,2952.9,2951.0,3.56340649]
[1769004539815,3.4748105,2953.2,2951.1,9.33592338]
[1769004539816,0.00411716,2953.2,2951.1,9.33592338]
[1769004540014,0.16943,2954.1,2951.7,3.56060002]
[1769004540210,2.07233795,2953.9,2951.7,3.56060002]
[1769004540415,0.16949,2953.1,2951.1,3.56060002]
[1769004541015,3.47433648,2953.1,2951.1,3.56060002]
[1769004541320,3.47069334,2953.0,2951.1,3.56060002]
[1769004541624,0.16953,2952.3,2951.0,0.00280647]
[1769004541917,0.16956,2951.9,2950.1,3.56060002]
[1769004542116,3.47069334,2952.2,2950.1,3.56060002]
[1769004542316,3.47069334,2952.2,2949.3,3.56060002]
[1769004542515,0.16959,2951.3,2950.5,0.00508483]
[1769004542918,0.16955,2952.0,2950.5,0.00940674]
[1769004543219,3.47069334,2952.6,2950.5,3.57000676]
[1769004543613,4.30755616,2952.5,2950.5,3.57000676]
[1769004543811,5.35469334,2952.5,2950.5,3.57000676]
[1769004544616,0.16953,2952.3,2950.5,3.57000676]
[1769004545926,0.16954,2952.2,2950.5,3.57000676]
[1769004546625,1.884,2952.6,2950.5,3.57000676]
[1769004547024,1.884,2952.7,2950.5,3.57000676]
[1769004547427,0.83980109,2952.6,2950.5,3.57000676]
[1769004547627,1.884,2952.7,2950.5,3.57000676]
[1769004547826,0.83980528,2952.6,2950.5,3.57000676]
[1769004548029,0.1695,2952.9,2950.5,3.57000676]
[1769004548224,0.83988465,2952.8,2950.6,3.56060002]
[1769004548434,1.88764314,2953.1,2950.9,3.56060002]
[1769004548625,0.00364314,2953.1,2951.3,3.56060002]
[1769004548821,0.00364314,2953.1,2951.5,3.56060002]
[1769004549128,0.00364314,2953.1,2951.6,3.56060002]
[1769004549328,0.00364314,2953.1,2952.0,0.00508483]
[1769004549529,0.00364314,2953.1,2952.0,3.56568485]
[1769004550635,4.48032846,2953.0,2951.0,3.56060002]
[1769004550835,0.16951,2952.8,2951.0,3.56060002]
[1769004551535,0.16952,2952.6,2951.6,0.00508483]
[1769004551739,0.00508483,2952.2,2950.6,5.93992338]
[1769004551933,0.00508483,2952.2,2950.7,3.56060002]
[1769004553433,0.00508483,2952.2,2951.3,3.56060002]
[1769004554234,0.00364314,2953.1,2951.3,3.56060002]
[1769004554936,0.84072837,2953.0,2951.3,3.56060002]
[1769004555133,0.00364314,2953.1,2951.3,3.56060002]
[1769004555336,0.00364314,2953.1,2951.2,0.00508483]
[1769004555337,4.58026456,2953.0,2951.2,0.00508483]
[1769004555537,0.16951,2952.8,2951.2,0.00508483]
[1769004556741,0.16953,2952.5,2951.2,0.00508483]
[1769004557443,0.16953,2952.4,2951.2,0.00508483]